bitfinex-derivatives/quotes_BNBF0:USTF0_20250211
["timestamp","ask_amount","ask_price","bid_price","bid_amount"]
[1739240432226,1.494077,617.97,616.92,0.32419114]
[1739240432425,1.494077,617.96,616.92,0.32419114]
[1739240432627,1.494077,617.95,616.92,0.32419114]
[1739240432822,1.494077,617.94,616.92,0.32419114]
[1739240433027,1.494077,617.93,616.92,0.32419114]
[1739240433225,1.494077,617.92,616.92,0.32419114]
[1739240433425,1.494077,617.91,616.92,0.32419114]
[1739240433625,1.494077,617.9,616.92,0.32419114]
[1739240433822,1.494077,617.89,616.92,0.32419114]
[1739240434028,2.5704729,617.88,616.92,0.32419114]
[1739240434227,1.494077,617.87,616.92,0.32419114]
[1739240434526,2.5704729,617.86,616.92,0.32419114]
[1739240434723,1.494077,617.85,616.92,0.32419114]
[1739240434927,1.494077,617.84,616.92,0.32419114]
[1739240435128,1.494077,617.83,616.92,0.32419114]
[1739240435329,1.494077,617.82,616.92,0.32419114]
[1739240435530,1.494077,617.81,616.92,0.32419114]
[1739240435831,1.494077,617.8,616.92,0.32419114]
[1739240436030,1.494077,617.79,616.92,0.32419114]
[1739240436429,1.0763959,617.78,616.92,0.32419114]
[1739240436624,1.494077,617.77,616.92,0.32419114]
[1739240437533,2.5704729,617.76,616.92,0.32419114]
[1739240437727,1.49454539,617.75,616.92,0.32419114]
[1739240438129,1.0763959,617.74,616.92,0.32419114]
[1739240438332,1.49454539,617.73,616.92,0.32419114]
[1739240438629,2.57094129,617.72,616.92,0.32419114]
[1739240438830,1.49454539,617.71,616.92,0.32419114]
[1739240439031,2.57094129,617.71,616.92,0.32419114]
[1739240439231,1.49450491,617.7,616.92,0.32419114]
[1739240439834,1.0763959,617.69,616.92,0.32419114]
[1739240440137,2.57090081,617.68,616.92,0.32419114]
[1739240440332,1.49450491,617.67,616.92,0.32419114]
[1739240440533,2.57090081,617.67,616.92,0.32419114]
[1739240440729,1.49450491,617.66,616.92,0.32419114]
[1739240441136,1.0763959,617.65,616.92,0.32419114]
[1739240441430,1.49450491,617.64,616.92,0.32419114]
[1739240442338,1.0763959,617.63,616.92,0.32419114]
[1739240442530,1.49450491,617.62,616.92,0.32419114]
[1739240442929,1.0763959,617.63,616.92,0.32419114]
[1739240443436,1.0763959,618.1,616.92,0.32419114]
[1739240443630,2.11116282,618.09,616.92,0.32419114]
[1739240443836,2.11116805,618.08,616.92,0.32419114]
[1739240444136,2.11117329,618.07,616.92,0.32419114]
[1739240444330,2.86398125,618.06,616.92,0.32419114]
[1739240444532,1.78758535,618.05,616.92,0.32419114]
[1739240444733,1.78758535,618.04,616.92,0.32419114]
[1739240445035,2.86398125,618.03,616.92,0.32419114]
[1739240445231,1.78758535,618.02,616.92,0.32419114]
[1739240445430,1.78758535,618.01,616.92,0.32419114]
[1739240445738,2.86362299,618.0,616.92,0.32419114]
[1739240445937,1.78722709,617.99,616.92,0.32419114]
[1739240446131,1.78722709,617.98,616.92,0.32419114]
[1739240446333,1.78722709,617.97,616.92,0.32419114]
[1739240446531,0.29754595,617.96,616.92,0.32419114]
[1739240446735,1.48936358,617.95,616.92,0.32419114]
[1739240446934,1.78690953,617.94,616.92,0.32419114]
[1739240447134,1.78690953,617.93,616.92,0.32419114]
[1739240447433,1.48936358,617.92,616.92,0.32419114]
[1739240447636,1.48936358,617.91,616.92,0.32419114]
[1739240447835,1.48936358,617.9,616.92,0.32419114]
[1739240448036,1.48936358,617.89,616.92,0.32419114]
[1739240448335,1.48936358,617.88,616.92,0.32419114]
[1739240448535,1.48936358,617.87,616.92,0.32419114]
[1739240448736,1.48936358,617.86,616.92,0.32419114]
[1739240448939,1.48936358,617.85,616.92,0.32419114]
[1739240449134,1.48936358,617.84,616.92,0.32419114]
[1739240449333,1.48936358,617.83,616.92,0.32419114]
[1739240449534,1.48936358,617.82,616.92,0.32419114]
[1739240449738,1.48936358,617.81,616.92,0.32419114]
[1739240449935,1.0763959,617.83,616.92,0.32419114]
[1739240449936,1.48907158,617.8,616.92,0.32419114]
[1739240450137,1.48907158,617.79,616.92,0.32419114]
[1739240450439,1.48907158,617.78,616.92,0.32419114]
[1739240450636,1.48907158,617.77,616.92,0.32419114]
[1739240450839,2.56546748,617.76,616.92,0.32419114]
[1739240451141,1.48907158,617.75,616.92,0.32419114]
[1739240451839,1.0763959,617.74,616.92,0.32419114]
[1739240452041,1.48907158,617.73,616.92,0.32419114]
[1739240452934,1.0763959,617.72,616.92,0.32419114]
[1739240453136,1.48907158,617.71,616.92,0.32419114]
[1739240453438,1.0763959,617.7,616.92,0.32419114]
[1739240453643,1.48907158,617.69,616.92,0.32419114]
[1739240453844,1.0763959,617.68,616.92,0.32419114]
[1739240454442,1.48927039,617.67,616.92,0.32419114]
[1739240454739,1.0763959,617.66,616.92,0.32419114]
[1739240454939,1.48927039,617.65,616.92,0.32419114]
[1739240455845,1.0763959,617.64,616.92,0.32419114]
[1739240456239,1.0763959,618.06,616.92,0.32419114]
[1739240456443,1.7868113,618.05,616.92,0.32419114]
[1739240456745,1.7868113,618.04,616.92,0.32419114]
[1739240456939,1.7868113,618.03,616.92,0.32419114]
[1739240457144,1.7868113,618.02,616.92,0.32419114]
[1739240457343,1.0763959,618.04,616.92,0.32419114]
[1739240457344,1.7868113,618.01,616.92,0.32419114]
[1739240457542,1.7868113,618.0,616.92,0.32419114]
[1739240457741,1.48928765,617.99,616.92,0.32419114]
[1739240458042,1.78681542,617.98,616.92,0.32419114]
[1739240458250,1.48928765,617.97,616.92,0.32419114]
[1739240458446,1.48928765,617.96,616.92,0.32419114]
[1739240458647,1.48928765,617.95,616.92,0.32419114]
[1739240458849,1.48928765,617.94,616.92,0.32419114]
[1739240459045,1.48928765,617.93,616.92,0.32419114]
[1739240459249,1.48928765,617.92,616.92,0.32419114]
[1739240459447,1.48928765,617.91,616.92,0.32419114]
[1739240459649,1.48928765,617.9,616.92,0.32419114]
[1739240459849,1.48928765,617.89,616.92,0.32419114]
[1739240460148,1.48928765,617.88,616.92,0.32419114]
[1739240460350,1.48928765,617.87,616.92,0.32419114]
[1739240460647,1.48928765,617.86,616.92,0.32419114]
[1739240460849,1.48928765,617.85,616.92,0.32419114]
[1739240461050,1.48928765,617.84,616.92,0.32419114]
[1739240461251,1.48928765,617.83,616.92,0.32419114]
[1739240461551,2.56589287,617.82,616.92,0.32419114]
[1739240461849,2.56589287,617.81,616.92,0.32419114]
[1739240462051,1.48949697,617.8,616.92,0.32419114]
[1739240462351,1.48949697,617.79,616.92,0.32419114]
[1739240462546,2.56589287,617.78,616.92,0.32419114]
[1739240462743,1.48949697,617.77,616.92,0.32419114]
[1739240462947,2.56589287,617.76,616.92,0.32419114]
[1739240463146,1.48949697,617.75,616.92,0.32419114]
[1739240463346,2.56589287,617.74,616.92,0.32419114]
[1739240463551,1.48949697,617.73,616.92,0.32419114]
[1739240463751,1.48949697,617.72,616.92,0.32419114]
[1739240463951,1.48949697,617.71,616.92,0.32419114]
[1739240464152,1.48949697,617.7,616.92,0.32419114]
[1739240464351,1.48949697,617.69,616.92,0.32419114]
[1739240464646,1.48949697,617.68,616.92,0.32419114]
[1739240464846,1.0763959,617.67,616.92,0.32419114]
[1739240465151,1.48949697,617.66,616.92,0.32419114]
[1739240465450,1.0763959,617.65,616.92,0.32419114]
[1739240465650,1.48949697,617.64,616.92,0.32419114]
[1739240466152,1.0763959,617.63,616.92,0.32419114]
[1739240466351,1.48949697,617.62,616.92,0.32419114]
[1739240466551,1.0763959,617.61,616.92,0.32419114]
[1739240466748,1.48949697,617.6,616.92,0.32419114]
[1739240467148,1.0763959,617.59,616.92,0.32419114]
[1739240467349,1.48949697,617.58,616.92,0.32419114]
[1739240467846,1.0763959,617.57,616.92,0.32419114]
[1739240468149,1.48949697,617.56,616.92,0.32419114]
[1739240468349,1.48949697,617.55,616.92,0.32419114]
[1739240468551,1.48949697,617.54,616.92,0.32419114]
[1739240468751,1.48949697,617.53,616.92,0.32419114]
[1739240469047,1.48949697,617.52,616.91,0.167]
[1739240469247,1.48949697,617.51,616.53,1.19824383]
[1739240469453,1.48949697,617.5,616.53,1.19824383]
[1739240469754,1.48949697,617.49,616.53,1.19824383]
[1739240470053,2.56589287,617.48,616.53,1.19824383]
[1739240470259,1.48949697,617.47,616.53,1.19824383]
[1739240470455,1.48949697,617.46,616.53,1.19824383]
[1739240470652,1.48949697,617.45,616.53,1.19824383]
[1739240470852,1.48949697,617.44,616.53,1.19824383]
[1739240471054,1.48949697,617.43,616.53,1.19824383]
[1739240471255,1.48949697,617.42,616.53,1.19824383]
[1739240471449,1.48949697,617.41,616.52,0.167]
[1739240471651,1.48949697,617.4,616.52,0.167]
[1739240472051,1.0763959,617.39,616.52,0.167]
[1739240472249,1.48949697,617.38,616.52,0.167]
[1739240472854,1.0763959,617.37,616.52,0.167]
[1739240473048,1.48949697,617.36,616.52,0.167]
[1739240473554,1.0763959,617.37,616.52,0.167]
[1739240473956,1.0763959,618.06,616.52,0.167]
[1739240474150,2.85707438,618.05,616.52,0.167]
[1739240474356,1.4829914,618.04,616.52,0.167]
[1739240474556,2.85706994,618.03,616.52,0.167]
[1739240474757,1.78067404,618.02,616.52,0.167]
[1739240474949,2.85706994,618.01,616.52,0.167]
[1739240475150,2.85706994,618.0,616.52,0.167]
[1739240475354,1.78067404,617.99,616.52,0.167]
[1739240475554,1.78067404,617.98,616.52,0.167]
[1739240475856,1.78067404,617.97,616.52,0.167]
[1739240476057,0.32365078,617.95,616.52,0.167]
[1739240476254,1.78011541,617.94,616.52,0.167]
[1739240476450,2.10377666,617.93,616.52,0.167]
[1739240476647,2.1037819,617.92,616.52,0.167]
[1739240476854,2.10378714,617.91,616.52,0.167]
[1739240477054,3.18018828,617.9,616.52,0.167]
[1739240477250,0.32368744,617.88,616.52,0.167]
[1739240477456,2.85651131,617.87,616.52,0.167]
[1739240477659,2.10381333,617.86,616.52,0.167]
[1739240477853,2.10381857,617.85,616.52,0.167]
[1739240478054,2.10382381,617.84,616.52,0.167]
[1739240478359,1.80614641,617.83,616.52,0.167]
[1739240478553,2.10387327,617.82,616.52,0.167]
[1739240478756,2.10387851,617.81,616.52,0.167]
[1739240478958,2.10388375,617.8,616.52,0.167]
[1739240479154,2.10388899,617.79,616.52,0.167]
[1739240479455,3.18029013,617.78,616.52,0.167]
[1739240479659,1.80617785,617.77,616.52,0.167]
[1739240479853,2.10391276,617.76,616.52,0.167]
[1739240480053,3.1803139,617.75,616.52,0.167]
[1739240480258,1.78016244,617.74,616.52,0.167]
[1739240480453,1.40015146,617.75,616.52,0.167]
[1739240480454,3.18032438,617.73,616.52,0.167]
[1739240480655,2.10393372,617.72,616.52,0.167]
[1739240480857,3.18033486,617.71,616.52,0.167]
[1739240481053,2.10394421,617.7,616.52,0.167]
[1739240481257,1.78016244,617.69,616.52,0.167]
[1739240481452,1.78016244,617.68,616.52,0.167]
[1739240481655,1.78016244,617.67,616.52,0.167]
[1739240481855,1.78016244,617.66,616.52,0.167]
[1739240482156,1.48243277,617.65,616.52,0.167]
[1739240482660,1.0763959,617.64,616.52,0.167]
[1739240482857,1.48243277,617.63,616.52,0.167]
[1739240483661,1.0763959,617.62,616.52,0.167]
[1739240483862,1.48243277,617.61,616.52,0.167]
[1739240484265,1.0763959,617.6,616.52,0.167]
[1739240484564,1.47911034,617.59,616.52,0.167]
[1739240485059,1.0763959,617.58,616.52,0.167]
[1739240485260,1.47911034,617.57,616.52,0.167]
[1739240485470,1.0763959,617.56,616.53,0.32439621]
[1739240485666,1.47911034,617.55,616.53,0.32439621]
[1739240486066,1.0763959,617.54,616.53,0.32439621]
[1739240486860,0.32378177,617.7,616.53,0.32439621]
[1739240486861,1.0763959,617.69,616.53,0.32439621]
[1739240487063,1.47885039,617.68,616.53,0.32439621]
[1739240487668,1.0763959,617.67,616.53,0.32439621]
[1739240487868,1.47885039,617.66,616.53,0.32439621]
[1739240488068,1.0763959,617.65,616.53,0.32439621]
[1739240488269,1.47885039,617.64,616.53,0.32439621]
[1739240488668,1.0763959,617.63,616.53,0.32439621]
[1739240488864,1.47885039,617.62,616.53,0.32439621]
[1739240489269,1.0763959,617.61,616.53,0.32439621]
[1739240489469,1.47885039,617.6,616.53,0.32439621]
[1739240489868,1.0763959,617.59,616.53,0.32439621]
[1739240490070,1.47891861,617.58,616.53,0.32439621]
[1739240490970,1.0763959,617.57,616.53,0.32439621]
[1739240491171,1.47891861,617.56,616.53,0.32439621]
[1739240491465,1.0763959,617.55,616.53,0.32439621]
[1739240491670,1.47891861,617.54,616.53,0.32439621]
[1739240492370,1.0763959,617.53,616.53,0.32439621]
[1739240492871,1.0763959,617.69,616.53,0.32439621]
[1739240493073,1.47910173,617.68,616.53,0.32439621]
[1739240493468,1.0763959,617.67,616.53,0.32439621]
[1739240493671,1.47910173,617.66,616.53,0.32439621]
[1739240493971,1.0763959,617.65,616.53,0.32439621]
[1739240494164,1.47925579,617.64,616.53,0.32439621]
[1739240494566,1.0763959,617.63,616.53,0.32439621]
[1739240494770,1.47925579,617.62,616.53,0.32439621]
[1739240495173,1.0763959,617.61,616.53,0.32439621]
[1739240495468,1.47925579,617.6,616.53,0.32439621]
[1739240496072,1.0763959,617.59,616.53,0.32439621]
[1739240496277,1.47917352,617.58,616.53,0.32439621]
[1739240496473,1.0763959,617.57,616.53,0.32439621]
[1739240496668,1.47917352,617.56,616.53,0.32439621]
[1739240497079,1.0763959,617.55,616.53,0.32439621]
[1739240497369,1.47917352,617.54,616.53,0.32439621]
[1739240498074,1.0763959,617.53,616.53,0.32439621]
[1739240498270,1.47917352,617.52,616.53,0.32439621]
[1739240498470,1.0763959,617.51,616.53,0.32439621]
[1739240498672,1.47917352,617.5,616.53,0.32439621]
[1739240499067,1.0763959,617.49,616.53,0.32439621]
[1739240499373,1.47917352,617.48,616.53,0.32439621]
[1739240499568,1.0763959,617.47,616.53,0.32439621]
[1739240499967,1.0763959,617.69,616.53,0.32439621]
[1739240500370,1.47934206,617.68,616.53,0.32439621]
[1739240500875,2.55584008,617.67,616.53,0.32439621]
[1739240501171,2.55584008,617.66,616.53,0.32439621]
[1739240501371,1.47944418,617.65,616.53,0.32439621]
[1739240501571,1.0763959,617.64,616.53,0.32439621]
[1739240501776,1.47944418,617.63,616.53,0.32439621]
[1739240502176,1.0763959,617.62,616.53,0.32439621]
[1739240502376,1.47951219,617.61,616.53,0.32439621]
[1739240502879,1.0763959,617.6,616.53,0.32439621]
[1739240503078,1.47951219,617.59,616.53,0.32439621]
[1739240503580,1.0763959,617.58,616.54,1.69218862]
[1739240503779,1.47951219,617.57,616.55,0.32438569]
[1739240504377,0.32378177,617.7,616.55,0.32438569]
[1739240504684,2.8466865,617.69,616.55,0.32438569]
[1739240504880,2.8466865,617.68,616.55,0.32438569]
[1739240505082,1.47955394,617.67,616.55,0.32438569]
[1739240505482,1.06945888,617.66,616.55,0.32438569]
[1739240505684,1.47955394,617.65,616.55,0.32438569]
[1739240506083,1.06945888,617.64,616.55,0.32438569]
[1739240506282,1.47955394,617.63,616.55,0.32438569]
[1739240506984,1.06945888,617.62,616.55,0.32438569]
[1739240507177,1.47955394,617.61,616.55,0.32438569]
[1739240507779,1.06945888,617.6,616.55,0.32438569]
[1739240507983,1.47955394,617.59,616.55,0.32438569]
[1739240508185,0.29773617,617.58,616.55,0.32438569]
[1739240508380,1.47955394,617.57,616.55,0.32438569]
[1739240508983,1.06945888,617.56,616.55,0.32438569]
[1739240509183,1.47978402,617.55,616.55,0.32438569]
[1739240509490,1.06945888,617.54,616.55,0.32438569]
[1739240509686,1.47978402,617.53,616.55,0.32438569]
[1739240509881,1.06945888,617.52,616.55,0.32438569]
[1739240510080,1.47950034,617.51,616.55,0.32438569]
[1739240510586,1.06945888,617.5,616.55,0.32438569]
[1739240510787,1.47933966,617.49,616.55,0.32438569]
[1739240511181,1.06945888,617.48,616.55,0.32438569]
[1739240511381,1.47933966,617.47,616.55,0.32438569]
[1739240511786,1.06945888,617.46,616.55,0.32438569]
[1739240512086,1.47933966,617.45,616.55,0.32438569]
[1739240512487,1.06945888,617.44,616.55,0.32438569]
[1739240512687,0.32378177,617.7,616.55,0.32438569]
[1739240512987,1.06940644,617.43,616.55,0.32438569]
[1739240513286,1.47936097,617.42,616.55,0.32438569]
[1739240513487,1.47936097,617.41,616.55,0.32438569]
[1739240513687,1.47936097,617.4,616.55,0.32438569]
[1739240513987,1.47936097,617.39,616.55,0.32438569]
[1739240514189,1.47936097,617.38,616.55,0.32438569]
[1739240514388,1.47936097,617.37,616.55,0.32438569]
[1739240514588,1.47936097,617.36,616.55,0.32438569]
[1739240514787,1.47936097,617.35,616.55,0.32438569]
[1739240514983,2.54876741,617.34,616.55,0.32438569]
[1739240515288,1.47936097,617.33,616.54,0.167]
[1739240515684,2.54876741,617.33,616.54,0.167]
[1739240515885,1.47936097,617.32,616.54,0.167]
[1739240516086,2.54876741,617.32,616.54,0.167]
[1739240516280,1.47936097,617.31,616.54,0.167]
[1739240516686,1.06940644,617.3,616.54,0.167]
[1739240516883,1.4796508,617.29,616.54,0.167]
[1739240517288,1.47999584,617.28,616.54,0.167]
[1739240517585,1.47999584,617.27,616.54,0.167]
[1739240517990,1.06940644,617.26,616.54,0.167]
[1739240518189,1.47999584,617.25,616.54,0.167]
[1739240518792,1.06940644,617.24,616.54,0.167]
[1739240519091,1.48056759,617.23,616.54,0.167]
[1739240519293,1.06940644,617.24,616.54,0.167]
[1739240519794,1.06940644,617.69,616.54,0.167]
[1739240519992,2.10208158,617.68,616.54,0.167]
[1739240520191,1.06940644,617.69,616.54,0.167]
[1739240520192,1.80431855,617.67,616.54,0.167]
[1739240520493,2.10207475,617.66,616.54,0.167]
[1739240520696,1.77827202,617.65,616.54,0.167]
[1739240520889,1.77827202,617.64,616.54,0.167]
[1739240521195,1.77827202,617.63,616.54,0.167]
[1739240521393,1.77827202,617.62,616.54,0.167]
[1739240521694,1.77827202,617.61,616.54,0.167]
[1739240521889,2.84767846,617.6,616.54,0.167]
[1739240522093,1.77827202,617.59,615.94,1.19824383]
[1739240522391,2.84767846,617.58,615.96,0.3246964]
[1739240522594,1.77827202,617.57,615.96,0.3246964]
[1739240522794,1.77827202,617.56,615.96,0.3246964]
[1739240522996,1.77827202,617.55,615.96,0.3246964]
[1739240523295,1.77827202,617.54,615.96,0.4916964]
[1739240523497,1.77827202,617.53,615.96,0.4916964]
[1739240523695,1.77827202,617.52,615.96,0.4916964]
[1739240523890,1.48052106,617.51,615.96,0.4916964]
[1739240524094,1.77827202,617.5,615.96,0.4916964]
[1739240524294,1.77827202,617.49,615.96,0.4916964]
[1739240524491,1.48052106,617.48,615.97,1.19824383]
[1739240524795,1.48052106,617.47,615.99,0.32468059]
[1739240524996,1.48135934,617.46,615.99,0.32468059]
[1739240525196,1.06940644,617.49,615.99,0.32468059]
[1739240525197,1.48135934,617.45,615.99,0.32468059]
[1739240525397,2.55076578,617.44,615.99,0.32468059]
[1739240525597,1.48135934,617.43,616.0,1.69272364]
[1739240525897,1.06940644,617.42,616.0,1.69272364]
[1739240526197,1.48135934,617.41,616.0,1.69272364]
[1739240526898,1.06940644,617.4,616.02,0.32466478]
[1739240527098,1.48135934,617.39,616.02,0.32466478]
[1739240527898,1.06940644,617.38,616.02,0.32466478]
[1739240528099,1.48135934,617.37,616.02,0.32466478]
[1739240528792,1.06940644,617.36,616.02,0.32466478]
[1739240529293,1.06940644,617.65,616.02,0.32466478]
[1739240529499,1.48380639,617.64,616.02,0.32466478]
[1739240529697,1.48380639,617.63,616.02,0.32466478]
[1739240529996,1.48380639,617.62,616.02,0.32466478]
[1739240530196,1.48380639,617.61,616.02,0.32466478]
[1739240530402,1.48380639,617.6,616.02,0.32466478]
[1739240530602,1.48380639,617.59,616.02,0.32466478]
[1739240530798,1.48380639,617.58,616.02,0.32466478]
[1739240530996,2.55321283,617.57,616.02,0.32466478]
[1739240531303,2.55321283,617.56,616.02,0.32466478]
[1739240531501,1.48380639,617.55,616.02,0.32466478]
[1739240532197,1.06940644,617.54,616.02,0.32466478]
[1739240532699,0.32380273,617.66,616.02,0.32466478]
[1739240532902,1.48401299,617.65,616.02,0.32466478]
[1739240533298,1.07250858,617.64,616.02,0.32466478]
[1739240533498,1.48401299,617.63,616.02,0.32466478]
[1739240533905,1.07250858,617.62,616.02,0.32466478]
[1739240534203,1.48401299,617.61,616.02,0.32466478]
[1739240534806,1.07250858,617.6,616.02,0.32466478]
[1739240535006,1.48401299,617.59,616.38,1.19824383]
[1739240535205,1.48401299,617.59,616.4,0.32446463]
[1739240535605,1.07250858,617.58,616.4,0.32446463]
[1739240535806,1.48401299,617.57,616.4,0.32446463]
[1739240536306,1.07250858,617.56,616.4,0.32446463]
[1739240536509,1.48401299,617.55,616.4,0.32446463]
[1739240537008,1.07250858,617.54,616.4,0.32446463]
[1739240537208,1.48401299,617.53,616.4,0.32446463]
[1739240537503,1.07250858,617.52,616.4,0.32446463]
[1739240537707,1.48401299,617.51,616.4,0.32446463]
[1739240538105,1.07250858,617.5,616.4,0.32446463]
[1739240538309,1.48401299,617.49,616.4,0.32446463]
[1739240538608,1.07250858,617.48,616.4,0.32446463]
[1739240538808,1.48401299,617.47,616.4,0.32446463]
[1739240539307,1.07250858,617.46,616.4,0.32446463]
[1739240539506,1.48401299,617.45,616.4,0.32446463]
[1739240540309,1.07250858,617.44,616.4,0.32446463]
[1739240540510,1.48401299,617.43,616.4,0.32446463]
[1739240541009,1.48425401,617.42,616.4,0.32446463]
[1739240541209,1.48425401,617.41,616.4,0.32446463]
[1739240541408,1.48430969,617.4,616.4,0.32446463]
[1739240541809,1.07250858,617.39,616.4,0.32446463]
[1739240542608,1.07250858,617.65,616.4,0.32446463]
[1739240542811,1.48434605,617.64,616.4,0.32446463]
[1739240543009,1.48436393,617.63,616.4,0.32446463]
[1739240543211,1.48436393,617.62,616.4,0.32446463]
[1739240543405,1.48436393,617.61,616.4,0.32446463]
[1739240543710,2.55687251,617.6,616.4,0.32446463]
[1739240543910,1.48436393,617.59,616.4,0.32446463]
[1739240544112,2.55687251,617.59,616.4,0.32446463]
[1739240544310,1.48436393,617.58,616.4,0.32446463]
[1739240544510,1.48436393,617.57,616.4,0.32446463]
[1739240544706,2.55687251,617.56,616.4,0.32446463]
[1739240544910,1.48436393,617.55,616.4,0.32446463]
[1739240545112,1.07250858,617.54,616.4,0.32446463]
[1739240545313,1.48436393,617.53,616.4,0.32446463]
[1739240546015,1.07250858,617.52,616.4,0.32446463]
[1739240546214,1.48436393,617.51,616.4,0.32446463]
[1739240546615,1.07250858,617.5,616.4,0.32446463]
[1739240546914,1.48436393,617.49,616.4,0.32446463]
[1739240547516,1.07250858,617.5,616.4,0.32446463]
[1739240547712,0.32380273,617.66,616.4,0.32446463]
[1739240547910,1.4849596,617.65,616.4,0.32446463]
[1739240548113,1.07329441,617.64,616.4,0.32446463]
[1739240548314,1.4849596,617.63,616.4,0.32446463]
[1739240548916,1.07329441,617.62,616.4,0.32446463]
[1739240549116,1.4849596,617.61,616.4,0.32446463]
[1739240549712,1.07329441,617.6,616.4,0.32446463]
[1739240549917,1.4849596,617.59,616.4,0.32446463]
[1739240550714,1.07329441,617.58,616.4,0.32446463]
[1739240551016,1.4849596,617.57,616.4,0.32446463]
[1739240551518,1.07329441,617.56,616.4,0.32446463]
[1739240551813,1.4849596,617.55,616.4,0.32446463]
[1739240552618,1.07329441,617.54,616.4,0.32446463]
[1739240552918,1.4849596,617.53,616.4,0.32446463]
[1739240553420,1.07329441,617.52,616.4,0.32446463]
[1739240553614,1.4849596,617.51,616.4,0.49146463]
[1739240554215,1.07329441,617.5,616.4,0.49146463]
[1739240554416,1.4849596,617.49,616.4,0.49146463]
[1739240554720,1.07329441,617.5,616.4,0.49146463]
[1739240555020,1.07329441,617.65,616.4,0.49146463]
[1739240555222,1.48477917,617.64,616.4,0.49146463]
[1739240555421,1.07329441,617.63,616.4,0.49146463]
[1739240555720,1.48477917,617.62,616.4,0.49146463]
[1739240556125,1.07329441,617.61,616.4,0.49146463]
[1739240556322,1.48477917,617.6,616.4,0.49146463]
[1739240556521,1.07329441,617.59,616.4,0.49146463]
[1739240557523,1.07329441,618.31,616.4,0.49146463]
[1739240557721,0.3234728,618.29,616.4,0.49146463]
[1739240557926,1.78235283,618.28,616.4,0.49146463]
[1739240558125,0.32348849,618.26,616.4,0.49146463]
[1739240558324,1.78235283,618.25,616.4,0.49146463]
[1739240558625,0.32350419,618.23,616.4,0.49146463]
[1739240558825,1.78235283,618.22,616.4,0.49146463]
[1739240559126,0.32351989,618.2,616.4,0.49146463]
[1739240559427,2.85502442,618.19,616.4,0.49146463]
[1739240559622,0.32353559,618.17,616.4,0.49146463]
[1739240559820,1.78173001,618.16,616.4,0.49146463]
[1739240560026,2.10527607,618.15,616.4,0.49146463]
[1739240560221,2.1052813,618.14,616.4,0.49146463]
[1739240560422,2.10528654,618.13,616.4,0.49146463]
[1739240560626,3.17858618,618.12,616.4,0.49146463]
[1739240560826,1.80771705,618.11,616.4,0.49146463]
[1739240561026,2.10530602,618.1,616.4,0.49146463]
[1739240561228,2.10531126,618.09,616.4,0.49146463]
[1739240561423,2.10497408,618.08,616.4,0.49146463]
[1739240561626,2.10497932,618.07,616.4,0.49146463]
[1739240561820,1.19745275,618.37,616.4,0.49146463]
[1739240561821,3.17827896,618.06,616.4,0.49146463]
[1739240562029,2.10498979,618.05,616.4,0.49146463]
[1739240562324,3.17828944,618.04,616.4,0.49146463]
[1739240562529,2.10500026,618.03,616.4,0.49146463]
[1739240562729,1.80742176,618.02,616.4,0.49146463]
[1739240562927,2.10500781,618.01,616.4,0.49146463]
[1739240563128,2.10501305,618.0,616.4,0.49146463]
[1739240563327,2.10501829,617.99,616.4,0.49146463]
[1739240563529,1.78138846,617.98,616.4,0.49146463]
[1739240563730,1.78138846,617.97,616.4,0.49146463]
[1739240563930,2.85468287,617.96,616.4,0.49146463]
[1739240564130,1.78138846,617.95,616.51,1.19824383]
[1739240564430,1.78138846,617.94,616.52,0.32440147]
[1739240564631,1.78138846,617.93,616.52,0.32440147]
[1739240564931,1.78138846,617.92,616.52,0.32440147]
[1739240565130,1.78138846,617.91,616.52,0.32440147]
[1739240565332,1.78138846,617.9,616.52,0.32440147]
[1739240565530,0.29758082,617.89,616.52,0.32440147]
[1739240565731,1.48280891,617.88,616.52,0.32440147]
[1739240565931,0.29758082,617.87,616.52,0.32440147]
[1739240566131,1.48280891,617.86,616.52,0.32440147]
[1739240566325,0.29757925,617.85,616.52,0.32440147]
[1739240566529,1.48280891,617.84,616.52,0.32440147]
[1739240566729,1.78038816,617.83,616.52,0.32440147]
[1739240566930,2.85368257,617.82,616.58,1.19824383]
[1739240567134,2.85368257,617.81,616.59,0.32436465]
[1739240567326,1.78038816,617.8,616.59,0.32436465]
[1739240567536,1.78038816,617.79,616.59,0.32436465]
[1739240567736,1.78038816,617.78,616.59,0.32436465]
[1739240567937,1.48280891,617.77,616.59,0.32436465]
[1739240568238,0.29762539,617.76,616.59,0.32436465]
[1739240568539,1.48280891,617.75,616.59,0.32436465]
[1739240569237,1.07329441,617.74,616.59,0.32436465]
[1739240569438,1.48280891,617.73,616.59,0.32436465]
[1739240570133,1.07329441,617.72,616.59,0.32436465]
[1739240570337,1.48223558,617.71,616.59,0.32436465]
[1739240570940,1.07329441,617.7,616.59,0.32436465]
[1739240571240,1.48223558,617.69,616.59,0.32436465]
[1739240571740,2.10382888,617.68,616.4,0.167]